fUST/lending_fUST_20250326
["ID","MTS","AMOUNT","RATE_DAILY","PERIOD"]
[356697389,1742987361319,-1629.56028604,0.00013699,2]
[356697390,1742987361342,-1592.31319379,0.00013699,2]
[356697391,1742987361364,-1592.31319379,0.00013699,2]
[356697392,1742987361386,-1592.31319379,0.00013699,2]
[356697393,1742987361521,-1592.31319379,0.00013699,2]
[356697394,1742987361547,-1592.31319379,0.00013699,2]
[356697395,1742987361570,-1592.31319379,0.00013699,2]
[356697396,1742987361592,-1592.31319379,0.00013699,2]
[356697397,1742987361615,-1592.31319379,0.00013699,2]
[356697398,1742987361639,-1592.31319379,0.00013699,2]
[356697399,1742987361660,-1592.31319379,0.00013699,2]
[356697400,1742987361682,-1592.31319379,0.00013699,2]
[356697401,1742987361703,-1592.31319379,0.00013699,2]
[356697402,1742987361726,-1592.31319379,0.00013699,2]
[356697403,1742987361748,-1592.31319379,0.00013699,2]
[356697404,1742987361770,-1592.31319379,0.00013699,2]
[356697405,1742987361792,-1592.31319379,0.00013699,2]
[356697406,1742987361814,-1592.31319379,0.00013699,2]
[356697407,1742987361838,-1592.31319379,0.00013699,2]
[356697408,1742987361860,-1592.31319379,0.00013699,2]
[356697409,1742987361882,-1592.31319379,0.00013699,2]
[356697410,1742987361904,-1592.31319379,0.00013699,2]
[356697411,1742987361926,-1592.31319379,0.00013699,2]
[356697412,1742987361947,-1592.31319379,0.00013699,2]
[356697413,1742987361970,-1592.31319379,0.00013699,2]
[356697414,1742987361991,-1592.31319379,0.00013699,2]
[356697415,1742987362013,-1592.31319379,0.00013699,2]
[356697416,1742987362035,-1592.31319379,0.00013699,2]
[356697417,1742987362058,-1592.31319379,0.00013699,2]
[356697418,1742987362083,-1592.31319379,0.00013699,2]
[356697419,1742987362107,-1592.31319379,0.00013699,2]
[356697420,1742987362129,-1592.31319379,0.00013699,2]
[356697421,1742987362152,-1592.31319379,0.00013699,2]
[356697422,1742987362175,-1592.31319379,0.00013699,2]
[356697423,1742987362197,-1592.31319379,0.00013699,2]
[356697424,1742987362217,-1592.31319393,0.00013699,2]
[356697425,1742987362237,-500.0,0.00013773,2]
[356697426,1742987362257,-500.0,0.00013773,2]
[356697427,1742987362278,-500.0,0.00013773,2]
[356697428,1742987362300,-500.0,0.00013773,2]
[356697429,1742987362321,-500.0,0.00013773,2]
[356697430,1742987362345,-1518.59,0.00013773,2]
[356697431,1742987362365,-500.0,0.00013773,2]
[356697432,1742987362386,-500.0,0.00013773,2]
[356697433,1742987362406,-539.8,0.00013773,2]
[356697434,1742987362428,-500.0,0.00013773,2]
[356697435,1742987362449,-500.0,0.00013773,2]
[356697436,1742987362470,-500.0,0.00013773,2]
[356697437,1742987362491,-500.0,0.00013773,2]
[356697438,1742987362514,-500.0,0.00013946,2]
[356697439,1742987362534,-500.0,0.00013946,2]
[356697440,1742987362555,-335.83046636,0.00013946,2]
[356697441,1742987362576,-500.0,0.00013946,2]
[356697442,1742987362598,-500.0,0.00013946,2]
[356697443,1742987362619,-500.0,0.00014047,2]
[356697444,1742987362639,-500.0,0.00014047,2]
[356697445,1742987362660,-151.0,0.00014047,2]
[356697446,1742987362681,-151.0,0.00014047,2]
[356697447,1742987362703,-500.0,0.00014047,2]
[356697448,1742987362724,-1518.59,0.00014047,2]
[356697449,1742987362745,-500.0,0.00014047,2]
[356697450,1742987362766,-500.0,0.00014047,2]
[356697451,1742987362788,-193.29,0.00014047,2]
[356697452,1742987362809,-500.0,0.00014072,2]
[356697453,1742987362831,-500.0,0.0001422,2]
[356697454,1742987362853,-500.0,0.0001422,2]
[356697455,1742987362875,-500.0,0.0001422,2]
[356697456,1742987362897,-163.02,0.0001422,2]
[356697457,1742987362920,-2173.02204755,0.00014314,2]
[356697458,1742987362942,-643.87,0.00014321,2]
[356697459,1742987362963,-1518.59,0.00014321,2]
[356697460,1742987362984,-500.0,0.00014321,2]
[356697461,1742987363007,-259.65,0.00014494,2]
[356697462,1742987363029,-382.05076039,0.00014494,2]
[356697463,1742987363051,-500.0,0.00014494,2]
[356697464,1742987363072,-151.0,0.00014518,2]
[356697465,1742987363095,-1518.59,0.00014595,2]
[356697466,1742987363120,-500.0,0.00014595,2]
[356697467,1742987363141,-500.0,0.00014768,2]
[356697468,1742987363164,-1518.59,0.00014869,2]
[356697469,1742987363184,-500.0,0.00014869,2]
[356697470,1742987363206,-156.55,0.00015042,2]
[356697471,1742987363227,-1518.59,0.00015143,2]
[356697472,1742987363247,-778.31372814,0.00015174,2]
[356697473,1742987363268,-1518.59,0.00015417,2]
[356697474,1742987363288,-163.55403685,0.00015491,2]
[356697475,1742987363310,-2173.02204755,0.00015521,2]
[356697476,1742987363330,-1518.59,0.00015691,2]
[356697477,1742987363350,-165.28191878,0.00015713,2]
[356697478,1742987363371,-1518.59,0.00015965,2]
[356697479,1742987363391,-151.0,0.0001597,2]
[356697480,1742987363411,-1518.59,0.00016239,2]
[356697481,1742987363433,-151.0,0.00016416,2]
[356697482,1742987363454,-2073.8742679,0.00016438,2]
[356697483,1742987363474,-212.150241,0.00016438,2]
[356697484,1742987363494,-212.150241,0.00016438,2]
[356697485,1742987363514,-151.0,0.00016438,2]
[356697486,1742987363535,-151.0,0.00016438,2]
[356697487,1742987363556,-1518.59,0.00016513,2]
[356697488,1742987363581,-63.06643617,0.00016689,2]
[356697489,1742987373144,-633.37,0.00011588,2]
[356697490,1742987373165,-500.0,0.00013499,2]
[356697491,1742987373187,-49.05045169,0.00013536,2]
[356697540,1742987431898,-441.115,0.00011588,2]
[356698233,1742987440862,-58.885,0.00011588,2]
[356698235,1742987440873,-500.0,0.00013499,2]
[356698236,1742987440884,-109.6178715,0.00013536,2]
[356698237,1742987440894,-759.3,0.00013672,2]
[356698238,1742987440905,-500.0,0.00013673,2]
[356698239,1742987440915,-500.0,0.00013673,2]
[356698240,1742987440925,-500.0,0.00013673,2]
[356698241,1742987440934,-500.0,0.00013673,2]
[356698242,1742987440944,-500.0,0.00013673,2]
[356698243,1742987440953,-502.31647932,0.00013673,2]
[356698244,1742987440963,-275.94971,0.00013699,2]
[356698245,1742987440972,-481.67823041,0.00013773,2]
[356698246,1742987440981,-759.3,0.00013946,2]
[356698247,1742987440991,-759.3,0.0001422,2]
[356698248,1742987441001,-759.3,0.00014494,2]
[356698249,1742987441011,-759.3,0.00014768,2]
[356698250,1742987441020,-759.3,0.00015042,2]
[356698251,1742987441030,-759.3,0.00015316,2]
[356698252,1742987441039,-759.3,0.0001559,2]
[356698253,1742987441048,-759.3,0.00015864,2]
[356698254,1742987441058,-256.54896216,0.000159,2]
[356698297,1742987445833,-500.0,0.00013499,2]
[356698298,1742987445843,-500.0,0.00013773,2]
[356698299,1742987445857,-500.0,0.00014047,2]
[356698300,1742987445868,-1429.34999754,0.000159,2]
[356698301,1742987445880,-197.38681494,0.000159,2]
[356698302,1742987445890,-759.3,0.00016138,2]
[356698303,1742987445899,-759.3,0.00016412,2]
[356698304,1742987445909,-759.3,0.00016686,2]
[356698305,1742987445919,-778.31372814,0.0001675,2]
[356698306,1742987445928,-206.278,0.00016849,2]
[356698307,1742987445938,-759.3,0.0001696,2]
[356698309,1742987445948,-1883.28577454,0.00016969,2]
[356698311,1742987445958,-759.3,0.00017233,2]
[356698313,1742987445967,-151.0,0.00017239,2]
[356698315,1742987445977,-189.9811,0.00017239,2]
[356698317,1742987445987,-151.0,0.00017483,2]
[356698319,1742987445997,-759.3,0.00017507,2]
[356698321,1742987446009,-223.22417693,0.00017516,2]
[356698323,1742987446019,-3161.99968185,0.00017692,2]
[356698325,1742987446031,-6838.00031815,0.00017692,2]
[356698327,1742987446042,-212.150241,0.00017692,2]
[356698329,1742987446052,-212.150241,0.00017692,2]
[356698331,1742987446062,-151.0,0.00017692,2]
[356698333,1742987446072,-151.0,0.00017692,2]
[356698335,1742987446085,-759.3,0.00017781,2]
[356698336,1742987446095,-1500.0,0.00018,5]
[356698337,1742987446105,-1176.39919985,0.00018038,2]
[356698338,1742987446118,-706.88657469,0.00018038,2]
[356698339,1742987446128,-759.3,0.00018055,2]
[356698340,1742987446138,-151.0,0.00018239,2]
[356698341,1742987446147,-151.0,0.00018239,2]
[356698342,1742987446158,-151.0,0.00018239,2]
[356698343,1742987446172,-227.2418871,0.00018239,2]
[356698344,1742987446181,-500.0,0.00018239,2]
[356698345,1742987446190,-500.0,0.00018239,2]
[356698346,1742987446200,-500.0,0.00018239,2]
[356698347,1742987446211,-500.0,0.00018239,2]
[356698348,1742987446220,-500.0,0.00018239,2]
[356698349,1742987446229,-500.0,0.00018239,2]
[356698350,1742987446239,-500.0,0.00018239,2]
[356698351,1742987446248,-500.0,0.00018239,2]
[356698352,1742987446257,-500.0,0.00018239,2]
[356698353,1742987446266,-500.0,0.00018239,2]
[356698354,1742987446275,-500.0,0.00018239,2]
[356698355,1742987446284,-500.0,0.00018239,2]
[356698356,1742987446293,-500.0,0.00018239,2]
[356698357,1742987446303,-500.0,0.00018239,2]
[356698358,1742987446312,-500.0,0.00018239,2]
[356698359,1742987446321,-500.0,0.00018239,2]
[356698360,1742987446333,-500.0,0.00018239,2]
[356698361,1742987446342,-272.53449521,0.00018239,2]
[356698362,1742987446351,-500.0,0.00018239,2]
[356698363,1742987446361,-500.0,0.00018239,2]
[356698364,1742987446370,-500.0,0.00018239,2]
[356698365,1742987446379,-500.0,0.00018239,2]
[356698366,1742987446389,-500.0,0.00018239,2]
[356698367,1742987446398,-500.0,0.00018239,2]
[356698368,1742987446407,-500.0,0.00018239,2]
[356698369,1742987446417,-500.0,0.00018239,2]
[356698370,1742987446426,-397.51702449,0.00018239,2]
[356698372,1742988232021,-223.22417693,0.000105,2]
[356698380,1742988375664,-300.0,0.00010395,2]
[356698382,1742988431118,-180.50245403,0.00010395,2]
[356698383,1742988431142,-173.73401401,0.000105,2]
[356698384,1742988432136,-226.12328186,0.000105,2]
[356698387,1742988437087,-80.64515816,0.000105,2]
[356698388,1742988437110,-195.27444681,0.00010585,2]
[356698459,1742988518404,-300.0,9e-05,2]
[356698472,1742988522092,-158.25871196,9e-05,2]
[356698507,1742988556082,-153.49478625,9e-05,2]
[356698508,1742988556104,-278.23055993,9.9e-05,2]
[356698509,1742988556123,-278.23055993,0.0001,2]
[356698510,1742988556145,-1000.0,0.0001,2]
[356698511,1742988556165,-250.0,0.00010048,2]
[356698512,1742988556188,-24.79310819,0.00010585,2]
[356698513,1742988556210,-427.1017475,0.00010776,2]
[356698514,1742988556230,-300.0,0.00010819,2]
[356698515,1742988556253,-24900.0,0.0001082,2]
[356698516,1742988556273,-1256.4972782,0.00010907,2]
[356698517,1742988566329,-4753.76134801,0.00010798,2]
[356698518,1742988566351,-5834.3932189,0.00010907,2]
[356698519,1742988566372,-154.95110368,0.00010958,2]
[356698520,1742988566394,-500.0,0.00010958,2]
[356698521,1742988566416,-500.0,0.00010958,2]
[356698522,1742988566438,-220.067555,0.00011008,2]
[356698523,1742988566459,-1241.1318587,0.00011118,2]
[356698524,1742988566611,-151.0,0.00011141,2]
[356698525,1742988566642,-1000.0,0.00011141,2]
[356698526,1742988566664,-600.0,0.00011141,2]
[356698527,1742988566691,-376.68318699,0.00011141,2]
[356698528,1742988566713,-16787.9040604,0.00011148,2]
[356698529,1742988566734,-622.2,0.00011196,2]
[356698530,1742988566756,-500.0,0.00011232,2]
[356698531,1742988566778,-500.0,0.00011506,2]
[356698532,1742988566800,-500.0,0.00011579,2]
[356698533,1742988566822,-500.0,0.00011579,2]
[356698534,1742988566843,-500.0,0.00011579,2]
[356698535,1742988566864,-500.0,0.00011579,2]
[356698536,1742988566887,-515.27631126,0.00011579,2]
[356698537,1742988566909,-500.0,0.00011579,2]
[356698538,1742988566930,-500.0,0.00011579,2]
[356698539,1742988566951,-500.0,0.00011579,2]
[356698540,1742988566973,-500.0,0.00011579,2]
[356698541,1742988566995,-513.06536233,0.00011579,2]
[356698542,1742988567016,-622.88140461,0.00011579,2]
[356698543,1742988567037,-500.0,0.00011579,2]
[356698544,1742988567058,-500.0,0.00011579,2]
[356698545,1742988567080,-500.0,0.00011579,2]
[356698546,1742988567101,-500.0,0.00011579,2]
[356698547,1742988567122,-519.3655758,0.00011579,2]
[356698548,1742988567142,-557.3,0.00011579,2]
[356698549,1742988567163,-500.0,0.00011579,2]
[356698550,1742988567184,-326.10329543,0.00011579,2]
[356698551,1742988567206,-500.0,0.00011579,2]
[356698552,1742988567227,-500.0,0.00011579,2]
[356698553,1742988567248,-500.0,0.0001158,2]
[356698554,1742988567269,-500.0,0.0001158,2]
[356698555,1742988567290,-500.0,0.0001158,2]
[356698556,1742988567311,-500.0,0.0001158,2]
[356698557,1742988567333,-500.0,0.00011587,2]
[356698558,1742988567355,-500.0,0.00011587,2]
[356698559,1742988567376,-500.0,0.00011587,2]
[356698560,1742988567398,-150.29584418,0.00011587,2]
[356698561,1742988567421,-500.0,0.00011587,2]
[356698562,1742988567442,-500.0,0.00011587,2]
[356698563,1742988567463,-500.0,0.00011587,2]
[356698564,1742988567485,-500.0,0.00011587,2]
[356698565,1742988567506,-2729.46,0.00011587,2]
[356698566,1742988567526,-500.0,0.00011587,2]
[356698567,1742988567548,-371.57732369,0.00011587,2]
[356698568,1742988567568,-500.0,0.00011587,2]
[356698569,1742988567588,-1282.7,0.00011587,2]
[356698570,1742988567612,-500.0,0.00011587,2]
[356698571,1742988567633,-544.699852,0.00011587,2]
[356698572,1742988567654,-500.0,0.00011587,2]
[356698573,1742988567676,-500.0,0.00011587,2]
[356698574,1742988567697,-500.0,0.00011588,2]
[356698575,1742988567718,-500.0,0.00011588,2]
[356698576,1742988567739,-500.0,0.00011588,2]
[356698577,1742988567763,-500.0,0.00011853,2]
[356698578,1742988567786,-500.0,0.00011853,2]
[356698579,1742988567808,-500.0,0.00011853,2]
[356698580,1742988567829,-500.0,0.00011853,2]
[356698581,1742988567851,-500.0,0.00011853,2]
[356698582,1742988567871,-512.87138771,0.00011853,2]
[356698583,1742988567892,-510.7,0.00011853,2]
[356698584,1742988567913,-500.0,0.00011853,2]
[356698585,1742988567934,-500.0,0.00011853,2]
[356698586,1742988567956,-161.19483154,0.00011853,2]
[356698587,1742988567977,-500.0,0.00011853,2]
[356698588,1742988567998,-500.0,0.00011853,2]
[356698589,1742988568019,-500.0,0.00011854,2]
[356698590,1742988568041,-500.0,0.00011854,2]
[356698591,1742988568062,-500.0,0.00011854,2]
[356698592,1742988568084,-500.0,0.00011861,2]
[356698593,1742988568107,-215.87418648,0.00011861,2]
[356698594,1742988568128,-173.89,0.00011861,2]
[356698595,1742988568149,-500.0,0.00011861,2]
[356698596,1742988568170,-2729.46,0.00011861,2]
[356698597,1742988568190,-500.0,0.00011861,2]
[356698598,1742988568211,-1282.7,0.00011861,2]
[356698599,1742988568232,-466.29102493,0.00011861,2]
[356698600,1742988568254,-267.89631093,0.00011861,2]
[356698601,1742988568275,-614.2,0.00011861,2]
[356698602,1742988568296,-500.0,0.00011862,2]
[356698603,1742988568318,-420.0,0.00011891,2]
[356698604,1742988568339,-1185.6098495,0.00012076,2]
[356698605,1742988568361,-500.0,0.00012127,2]
[356698606,1742988568381,-229.34,0.00012127,2]
[356698607,1742988568402,-500.0,0.00012127,2]
[356698608,1742988568424,-500.0,0.00012127,2]
[356698609,1742988568457,-308.89,0.00012127,2]
[356698610,1742988568482,-500.0,0.00012127,2]
[356698611,1742988568504,-500.0,0.00012127,2]
[356698612,1742988568526,-500.0,0.00012128,2]
[356698613,1742988568548,-213.97432012,0.00012128,2]
[356698614,1742988568571,-251.84605271,0.00012128,2]
[356698615,1742988568592,-500.0,0.00012135,2]
[356698616,1742988568618,-500.0,0.00012135,2]
[356698617,1742988568640,-2729.46,0.00012135,2]
[356698618,1742988568661,-500.0,0.00012135,2]
[356698619,1742988568683,-1282.7,0.00012135,2]
[356698620,1742988568704,-1134.54349261,0.00012301,2]
[356698621,1742988568726,-500.0,0.00012401,2]
[356698622,1742988568748,-596.99561144,0.00012401,2]
[356698623,1742988568770,-202.19919093,0.00012401,2]
[356698624,1742988568791,-500.0,0.00012401,2]
[356698625,1742988568814,-500.0,0.00012401,2]
[356698626,1742988568836,-500.0,0.00012402,2]
[356698627,1742988568858,-500.0,0.00012409,2]
[356698628,1742988568878,-500.0,0.00012409,2]
[356698629,1742988568899,-504.89064767,0.00012409,2]
[356698630,1742988568921,-500.0,0.00012409,2]
[356698631,1742988568942,-335.8220053,0.00012409,2]
[356698632,1742988568964,-2729.46,0.00012409,2]
[356698633,1742988568986,-355.80514827,0.00012409,2]
[356698634,1742988569007,-1282.7,0.00012409,2]
[356698635,1742988569028,-501.92330891,0.0001265,2]
[356698636,1742988569050,-500.0,0.00012675,2]
[356698637,1742988569072,-500.0,0.00012675,2]
[356698638,1742988569095,-500.0,0.00012676,2]
[356698639,1742988569119,-500.0,0.00012682,2]
[356698640,1742988569144,-633.25832232,0.00012683,2]
[356698641,1742988569171,-500.0,0.00012683,2]
[356698642,1742988569194,-500.0,0.00012683,2]
[356698643,1742988569217,-2729.46,0.00012683,2]
[356698644,1742988569240,-1282.7,0.00012683,2]
[356698645,1742988569261,-500.0,0.00012748,2]
[356698646,1742988569282,-500.0,0.00012748,2]
[356698647,1742988569304,-500.0,0.00012748,2]
[356698648,1742988569325,-511.26141289,0.00012748,2]
[356698649,1742988569348,-500.0,0.00012758,2]
[356698650,1742988569370,-500.0,0.00012758,2]
[356698651,1742988569391,-500.0,0.00012758,2]
[356698652,1742988569412,-500.0,0.00012758,2]
[356698653,1742988569433,-500.0,0.00012758,2]
[356698654,1742988569455,-500.0,0.00012758,2]
[356698655,1742988569476,-502.34721961,0.00012758,2]
[356698656,1742988569636,-500.0,0.00012758,2]
[356698657,1742988569660,-500.0,0.00012758,2]
[356698658,1742988569684,-345.08802691,0.00012758,2]
[356698659,1742988569705,-500.0,0.00012758,2]
[356698660,1742988569726,-500.0,0.00012777,2]
[356698661,1742988569747,-500.0,0.00012777,2]
[356698662,1742988569769,-500.0,0.00012777,2]
[356698663,1742988569792,-500.75358151,0.00012787,2]
[356698664,1742988569812,-500.0,0.00012787,2]
[356698665,1742988569832,-500.0,0.00012878,2]
[356698666,1742988569853,-505.2190647,0.00012878,2]
[356698667,1742988569872,-500.50067765,0.00012878,2]
[356698668,1742988569893,-500.0,0.00012878,2]
[356698669,1742988569914,-5620.49253184,0.000129,2]
[356698670,1742988569935,-175.18819438,0.00012949,2]
[356698671,1742988569957,-500.0,0.00012949,2]
[356698672,1742988569980,-500.0,0.0001295,2]
[356698673,1742988570001,-500.0,0.00012957,2]
[356698674,1742988570022,-500.0,0.00012957,2]
[356698675,1742988570043,-2729.46,0.00012957,2]
[356698676,1742988570064,-1282.7,0.00012957,2]
[356698677,1742988570085,-587.0,0.0001307,2]
[356698678,1742988570108,-500.0,0.00013223,2]
[356698679,1742988570131,-500.0,0.00013224,2]
[356698680,1742988570153,-500.0,0.00013231,2]
[356698681,1742988570176,-500.0,0.00013231,2]
[356698682,1742988570198,-2729.46,0.00013231,2]
[356698683,1742988570220,-1282.7,0.00013231,2]
[356698684,1742988570243,-2179.46370927,0.000134,2]
[356698685,1742988570264,-2179.46370918,0.000134,2]
[356698686,1742988570287,-500.0,0.00013497,2]
[356698687,1742988570309,-500.0,0.00013498,2]
[356698688,1742988570330,-500.0,0.00013505,2]
[356698689,1742988570353,-500.0,0.00013505,2]
[356698690,1742988570374,-2729.46,0.00013505,2]
[356698691,1742988570395,-1282.7,0.00013505,2]
[356698692,1742988570417,-500.0,0.00013672,2]
[356698693,1742988570438,-500.0,0.00013673,2]
[356698694,1742988570459,-500.0,0.00013673,2]
[356698695,1742988570478,-500.0,0.00013673,2]
[356698696,1742988570498,-206.55148132,0.00013673,2]
[356698697,1742988570520,-500.0,0.00013673,2]
[356698698,1742988570539,-500.0,0.00013673,2]
[356698699,1742988570561,-500.0,0.00013698,2]
[356698700,1742988570581,-949.485618,0.00013699,2]
[356698701,1742988570605,-251.68440146,0.00013699,2]
[356698702,1742988570629,-501.16260717,0.00013699,2]
[356698703,1742988570654,-501.16260717,0.00013699,2]
[356698704,1742988570676,-501.16260717,0.00013699,2]
[356698705,1742988570700,-501.16260717,0.00013699,2]
[356698706,1742988570722,-501.16260717,0.00013699,2]
[356698707,1742988570745,-501.16260717,0.00013699,2]
[356698708,1742988570769,-501.16260717,0.00013699,2]
[356698709,1742988570792,-501.16260717,0.00013699,2]
[356698710,1742988570814,-501.16260717,0.00013699,2]
[356698711,1742988570845,-501.16260717,0.00013699,2]
[356698712,1742988570872,-501.16260717,0.00013699,2]
[356698713,1742988570896,-501.16260717,0.00013699,2]
[356698714,1742988570919,-501.16260717,0.00013699,2]
[356698715,1742988570941,-501.16260717,0.00013699,2]
[356698716,1742988570964,-501.16260717,0.00013699,2]
[356698717,1742988570986,-501.16260717,0.00013699,2]
[356698718,1742988571008,-501.16260717,0.00013699,2]
[356698719,1742988571031,-501.16260717,0.00013699,2]
[356698720,1742988571054,-501.16260717,0.00013699,2]
[356698721,1742988571076,-501.16260717,0.00013699,2]
[356698722,1742988571099,-501.16260717,0.00013699,2]
[356698723,1742988571126,-501.16260717,0.00013699,2]
[356698724,1742988571148,-501.16260717,0.00013699,2]
[356698725,1742988571170,-501.16260717,0.00013699,2]
[356698726,1742988571192,-501.16260717,0.00013699,2]
[356698727,1742988571215,-501.16260717,0.00013699,2]
[356698728,1742988571237,-501.16260717,0.00013699,2]
[356698729,1742988571260,-501.16260717,0.00013699,2]
[356698730,1742988571282,-501.16260717,0.00013699,2]
[356698731,1742988571307,-501.16260717,0.00013699,2]
[356698732,1742988571330,-501.16260717,0.00013699,2]
[356698733,1742988571353,-501.16260717,0.00013699,2]
[356698734,1742988571376,-501.16260717,0.00013699,2]
[356698735,1742988571398,-501.16260717,0.00013699,2]
[356698736,1742988571421,-501.16260717,0.00013699,2]
[356698737,1742988571443,-501.16260717,0.00013699,2]
[356698738,1742988571464,-501.16260717,0.00013699,2]
[356698739,1742988571486,-501.16260717,0.00013699,2]
[356698740,1742988571510,-501.16260717,0.00013699,2]
[356698741,1742988571532,-501.16260717,0.00013699,2]
[356698742,1742988571555,-501.16260717,0.00013699,2]
[356698743,1742988571578,-501.16260717,0.00013699,2]
[356698744,1742988571601,-501.16260717,0.00013699,2]
[356698745,1742988571626,-501.16260717,0.00013699,2]
[356698746,1742988571649,-501.16260717,0.00013699,2]
[356698747,1742988571671,-501.16260717,0.00013699,2]
[356698748,1742988571697,-501.16260717,0.00013699,2]
[356698749,1742988571719,-501.16260717,0.00013699,2]
[356698750,1742988571743,-501.16260717,0.00013699,2]
[356698751,1742988571765,-501.16260717,0.00013699,2]
[356698752,1742988571788,-707.2745816,0.00013699,2]
[356698753,1742988571811,-707.2745816,0.00013699,2]
[356698754,1742988571834,-707.2745816,0.00013699,2]
[356698755,1742988571858,-707.2745816,0.00013699,2]
[356698756,1742988571881,-707.2745816,0.00013699,2]
[356698757,1742988571903,-707.2745816,0.00013699,2]
[356698758,1742988571926,-707.2745816,0.00013699,2]
[356698759,1742988571952,-707.2745816,0.00013699,2]
[356698760,1742988571976,-707.2745816,0.00013699,2]
[356698761,1742988571999,-707.2745816,0.00013699,2]
[356698762,1742988572023,-707.2745816,0.00013699,2]
[356698763,1742988572046,-707.2745816,0.00013699,2]
[356698764,1742988572070,-707.2745816,0.00013699,2]
[356698765,1742988572094,-707.2745816,0.00013699,2]
[356698766,1742988572119,-707.2745816,0.00013699,2]
[356698767,1742988572145,-707.2745816,0.00013699,2]
[356698768,1742988572170,-707.2745816,0.00013699,2]
[356698769,1742988572194,-707.2745816,0.00013699,2]
[356698770,1742988572216,-707.2745816,0.00013699,2]
[356698771,1742988572238,-707.2745816,0.00013699,2]
[356698772,1742988572260,-707.2745816,0.00013699,2]
[356698773,1742988572282,-707.2745816,0.00013699,2]
[356698774,1742988572305,-707.2745816,0.00013699,2]
[356698775,1742988572327,-707.2745816,0.00013699,2]
[356698776,1742988572349,-707.2745816,0.00013699,2]
[356698777,1742988572371,-707.2745816,0.00013699,2]
[356698778,1742988572394,-707.2745816,0.00013699,2]
[356698779,1742988572416,-707.2745816,0.00013699,2]
[356698780,1742988572437,-707.2745816,0.00013699,2]
[356698781,1742988572576,-707.2745816,0.00013699,2]
[356698782,1742988572608,-707.2745816,0.00013699,2]
[356698783,1742988572631,-707.2745816,0.00013699,2]
[356698784,1742988572654,-707.2745816,0.00013699,2]
[356698785,1742988572676,-707.2745816,0.00013699,2]
[356698786,1742988572699,-707.2745816,0.00013699,2]
[356698787,1742988572721,-707.27458152,0.00013699,2]
[356698788,1742988572743,-707.27458152,0.00013699,2]
[356698789,1742988572763,-151.0,0.00013699,2]
[356698790,1742988572784,-151.0,0.00013699,2]
[356698791,1742988572805,-500.0,0.00013771,2]
[356698792,1742988572826,-500.0,0.00013772,2]
[356698793,1742988572848,-500.0,0.00013778,2]
[356698794,1742988572869,-500.0,0.00013779,2]
[356698795,1742988572891,-2729.46,0.00013779,2]
[356698796,1742988572912,-1282.7,0.00013779,2]
[356698797,1742988572933,-151.0,0.00013779,2]
[356698798,1742988572953,-151.0,0.00013779,2]
[356698799,1742988572974,-1134.5434926,0.00013968,2]
[356698800,1742988572995,-500.0,0.00014045,2]
[356698801,1742988573016,-500.0,0.00014046,2]
[356698802,1742988573037,-611.70829666,0.00014053,2]
[356698803,1742988573061,-2729.46,0.00014053,2]
[356698804,1742988573082,-1282.7,0.00014053,2]
[356698805,1742988573107,-2179.46370918,0.00014314,2]
[356698806,1742988573130,-151.0,0.00014314,2]
[356698807,1742988573152,-151.0,0.00014314,2]
[356698808,1742988573175,-500.0,0.00014319,2]
[356698809,1742988573199,-500.0,0.0001432,2]
[356698810,1742988573222,-151.0,0.00014327,2]
[356698811,1742988573245,-2729.46,0.00014327,2]
[356698812,1742988573267,-1282.7,0.00014327,2]